Cogmind - Beta 15 @@@ ROGUE MODE // 2025.06.01 @ 15:33:25 Player: pakman Result: Destroyed by KU-7GM(j) with Overtuned Pulse Rifle Performance ------------- Evolutions (0) 0 Regions Visited (4) 800 Robots Destroyed (29) 145 Value Destroyed (621) 621 Prototype IDs (7) 140 Alien Tech Used (0) 0 Bonus (800) 800 TOTAL SCORE: 2506 Bonus ------- Registered with UFD 300 Met Optimus in HQ 500 Cogmind --------- Core Integrity 0/250 Matter 300/300 Energy 138/140 System Corruption 0% Temperature Warm (114) Movement Walking (90) Location -8/Scraptown Parts ------- > --- POWER (1) -------- Light Deuterium Engine > --- PROPULSION (2) --- VSS Leg VSS Leg > --- UTILITY (2) ------ Scrap Suit > --- WEAPON (2) ------- Beamcaster > --- INVENTORY (5) ---- Light Deuterium Engine Seismic Detector Advanced Targeting Computer Scrapoid Pod Peak State ------------ > --- POWER ------------ Light Deuterium Engine > --- PROPULSION ------- Carbon-fiber Leg Flexi-carbon Leg > --- UTILITY ---------- Large Storage Unit Layered Medium Armor Plating > --- WEAPON ----------- Thermic Laser Hypervelocity Gauss Rifle > --- INVENTORY -------- Light Deuterium Engine Armored Treads Overtuned Titanium Leg Overtuned Titanium Leg Scrap Suit Compact Battery Improved Terrain Scanner Seismic Detector Advanced Targeting Computer Particle Charger Scrapoid Pod Overtuned Pulse Rifle CPS Tube [Rating: 32] Favorites ----------- Power Light Ion Engine Engine Light Ion Engine Power Core Light Nuclear Core Propulsion Aluminum Leg Leg Aluminum Leg Utility Large Storage Unit Device Improved Terrain Scanner Storage Large Storage Unit Protection Layered Medium Armor Plating Weapon Thermic Laser Energy Gun Thermic Laser Energy Cannon Beam Cannon Ballistic Gun Hypervelocity Gauss Rifle Launcher Grenade Launcher Slashing Weapon Mining Claw Build | -11 -10 -10 -10 -8 ------- Run | Yrd Mat Min Sub Scr Slots Evolved . | . . . . . Power . | . . . . . Propulsion . | . . . . . Utility . | . . . . . Weapon . | . . . . . Parts Attached 43 | 1 15 11 . 16 Power 9 | . 2 3 . 4 Engine 7 | . 2 2 . 3 Core 2 | . . 1 . 1 Reactor . | . . . . . Propulsion 12 | . 4 2 . 6 Treads . | . . . . . Leg 12 | . 4 2 . 6 Wheel . | . . . . . Hover . | . . . . . Flight . | . . . . . Utility 8 | 1 2 3 . 2 Device 5 | 1 . 3 . 1 Storage 2 | . 2 . . . Processor . | . . . . . Hackware . | . . . . . Protection 1 | . . . . 1 Artifact . | . . . . . Weapon 14 | . 7 3 . 4 Energy Gun 8 | . 3 2 . 3 Energy Cannon 1 | . . 1 . . Ballistic Gun 3 | . 2 . . 1 Ballistic Cannon . | . . . . . Launcher 1 | . 1 . . . Special Weapon . | . . . . . Impact Weapon . | . . . . . Slashing Weapon 1 | . 1 . . . Piercing Weapon . | . . . . . Special Melee Weapon . | . . . . . Unidentified Prototypes . | . . . . . Parts Lost 11 | . 1 5 . 5 Power 1 | . . 1 . . Propulsion 3 | . 1 1 . 1 Utility 1 | . . . . 1 Weapon 6 | . . 3 . 3 Highest Loss Streak 4 | . 1 4 . 2 To Critical Strikes . | . . . . . Average Backups 11 | 6 9 11 11 13 Power 1 | 1 . 1 2 1 Propulsion 2 | 4 2 1 2 2 Utility 5 | . 2 4 5 7 Weapon 2 | 1 3 3 2 1 Tool/Special . | . . . . . Unused Backups 22 | . 10 . . 12 Power 2 | . 1 . . 1 Propulsion 7 | . 5 . . 2 Utility 10 | . 4 . . 6 Weapon 1 | . . . . 1 Tool/Special 2 | . . . . 2 Average Slot Usage (%) 95 | . 99 99 100 92 Engine 13 | . 14 13 14 13 Leg 27 | . 27 28 28 28 Device 13 | . 14 14 14 12 Storage 13 | . 14 14 14 13 Energy Gun 9 | . 6 7 14 11 Energy Cannon 2 | . . 7 14 . Ballistic Gun 11 | . 19 13 . 8 Peak Build Rating 32 | 7 8 12 12 32 Average Rating 13 | 6 7 8 10 18 On Entrance 8 | 6 7 8 12 10 Naked Turns . | . . . . . Heaviest Build 43 | 14 29 32 30 43 Greatest Support 38 | 20 20 20 20 38 Greatest Overweight (x) 1 | . 1 1 1 1 Average Overweight (x) . | . . 1 1 . Largest Inventory Capacity 15 | 8 15 15 15 15 Average Capacity 13 | 8 10 15 15 14 Most Carried 15 | 6 10 13 11 15 Average Carried 12 | 6 9 11 11 14 Final Capacity 15 | 8 15 15 15 5 Final Carried 11 | 6 10 11 11 5 Class Distribution -------------------- 57% | Scavenger-Mutant 42% | Mutant Dominant Class ---------------- Mutant | -10/Materials Scavenger-Mutant | -10/Mines Scavenger-Mutant | -10/Subcaves Scavenger-Mutant | -8/Scraptown Resources | -11 -10 -10 -10 -8 ----------- Run | Yrd Mat Min Sub Scr Matter Collected 1055 | 218 370 267 17 183 Remotely . | . . . . . Salvage Created 1028 | 113 524 171 90 130 Parts 51 | 7 24 10 5 5 Haulers Intercepted 1 | . 1 . . . Recyclers Shooed 2 | 1 1 . . . Parts Field Recycled . | . . . . . Retrieved Matter . | . . . . . Parts Self-Destructed 16 | . . . 13 3 Prevented . | . . . . . Kills | -11 -10 -10 -10 -8 ------- Run | Yrd Mat Min Sub Scr Combat Hostiles Destroyed 28 | . 11 13 2 2 Guns 13 | . 7 2 2 2 Cannons 8 | . . 8 . . AOE 6 | . 3 3 . . Classes Destroyed 9 | 2 5 1 . 1 Worker 4 | . 3 1 . . Tunneler 2 | 1 . 1 . . Hauler 1 | . 1 . . . Recycler 1 | 1 . . . . Watcher 3 | . 3 . . . Swarmer 6 | . 3 3 . . Grunt 10 | . 8 . 2 . Scrapper 2 | . . . . 2 Assembled 10 | . . 10 . . Best Kill Streak 5 | 2 5 3 2 2 Combat Bots Only 3 | . 3 3 2 2 Max Kills in Single Turn 3 | 1 3 2 1 2 Gunslinging 1 | . . . . 1 Exploded 2 | . 2 2 . . Melee . | . . . . . Uniques/NPCs Destroyed . | . . . . . Combat | -11 -10 -10 -10 -8 -------- Run | Yrd Mat Min Sub Scr Hostile Shots Fired 182 | . 51 28 7 96 Missed 45 | . 14 5 1 25 Hits 137 | . 37 23 6 71 Melee 6 | . . 6 . . Projectile 131 | . 37 17 6 71 Critical Strikes 2 | . 2 . . . Damage Taken 2198 | . 474 419 72 1233 Core 259 | . 52 75 10 122 Absorbed by Shields . | . . . . . Regen/Repaired (Parts) 47 | . 34 . . 13 Core Remaining (%) 100 | 100 . . . . Volleys Fired 126 | 8 68 29 5 16 Largest 2 | 2 2 2 2 2 Hottest 155 | 70 100 105 105 155 Shots Fired 229 | 16 131 52 10 20 Gun 203 | 16 127 35 5 20 Cannon 20 | . . 15 5 . Launcher 6 | . 4 2 . . Special . | . . . . . Kinetic 116 | 8 89 19 . . Thermal 86 | 8 38 15 5 20 Explosive 6 | . 4 2 . . Electromagnetic 21 | . . 16 5 . Robot Hit Streak 11 | 4 11 8 4 6 Robot Miss Streak 6 | 3 6 4 1 . Penetration Max . | . . . . . Secondary Targets 3 | . 1 1 . 1 Max Gunslinging Chain 1 | . 1 1 . 1 Shots Hit Robots 138 | 8 85 34 8 3 Core Hits 76 | 4 37 27 5 3 Critical Kills . | . . . . . Critical Parts Destroyed . | . . . . . Critical Strikes . | . . . . . Melee Attacks 6 | . 6 . . . Impact . | . . . . . Slashing 6 | . 6 . . . Piercing . | . . . . . Sneak Attacks . | . . . . . Combat Hostiles . | . . . . . Follow-up Attacks . | . . . . . Damage Inflicted 1999 | 76 1157 573 103 90 Guns 1335 | 76 920 227 50 62 Cannons 230 | . . 177 53 . Explosions 406 | . 237 169 . . Melee . | . . . . . Ramming 28 | . . . . 28 Kinetic 758 | 39 599 120 . . Thermal 678 | 37 321 205 53 62 Explosive 378 | . 237 141 . . Electromagnetic 157 | . . 107 50 . Impact . | . . . . . Slashing . | . . . . . Piercing . | . . . . . Highest Corruption 1 | . 1 1 1 1 Average Corruption 1 | . 1 1 1 1 Corruption Purged . | . . . . . Corruption Blocked . | . . . . . Effects 24 | . 11 5 3 5 Message Errors 6 | . 2 3 1 . Matter Fused 6 | . 2 1 1 2 Heat Flow Errors 3 | . . 1 1 1 Energy Discharges 3 | . 2 . . 1 Data Loss (minor) 3 | . 2 . . 1 Data Loss (major) 1 | . 1 . . . Misfires 2 | . 2 . . . Overload Shots . | . . . . . Overflow Damage 15 | . . 15 . . Projectiles . | . . . . . Explosions 15 | . . 15 . . Melee . | . . . . . Knockbacks . | . . . . . Impact . | . . . . . Kinetic . | . . . . . Secondary . | . . . . . Self-Inflicted Damage 42 | . 5 37 . . Shots 2 | . 1 1 . . Rammed . | . . . . . Targets Rammed 8 | . . . . 8 Kicked 8 | . . . . 8 Crushed . | . . . . . Highest Temperature 439 | 42 439 240 250 243 Average Temperature 92 | 20 128 82 72 79 Received Heat Transfer 1052 | . 297 80 42 633 Effects 4 | . 2 . . 2 Energy Bleed 2 | . 2 . . . Interference 2 | . . . . 2 Siege Activations . | . . . . . Martial Activations . | . . . . . Shielding Activations . | . . . . . Robots Disrupted . | . . . . . Combat Hostiles . | . . . . . Robots Corrupted . | . . . . . Combat Hostiles . | . . . . . Parts Fried . | . . . . . Impact Corruptions . | . . . . . Robots Melted 1 | . 1 . . . Combat Hostiles 1 | . 1 . . . Parts Melted 4 | . 3 . . 1 Heat Transferred 1604 | 111 925 370 111 87 Parts Sabotaged . | . . . . . Parts Stolen . | . . . . . Parts Stripped . | . . . . . Power Chain Reactions 1 | . . 1 . . Alert | -11 -10 -10 -10 -8 ------- Run | Yrd Mat Min Sub Scr Maximum Alert Level . | . . . . . Low Security (%) 100 | 100 100 100 . . Level 1 . | . . . . . Level 2 . | . . . . . Level 3 . | . . . . . Level 4 . | . . . . . Level 5 . | . . . . . High Security . | . . . . . Max Security . | . . . . . Peak Influence 85 | 10 85 82 . . Initial . | . . . . . Average 11 | 1 16 5 . . Influence Increases 536 | 10 365 111 50 . Destroy 0b10 Robot/C 320 | . 220 60 40 . Destroy 0b10 Robot/NC 55 | 10 35 10 . . Destroy Leader 78 | . 58 10 10 . Successful Hack 33 | . 33 . . . Disable Machine 15 | . . 15 . . Destroy Structure 35 | . 19 16 . . Influence Decreases 536 | 10 365 111 50 . Time Decay 517 | 10 355 102 50 . Lost Part 19 | . 10 9 . . Squads Dispatched 2 | . 2 . . . Investigation . | . . . . . Extermination . | . . . . . Reinforcement 2 | . 2 . . . Assault . | . . . . . Garrison . | . . . . . Intercept . | . . . . . Searches Triggered . | . . . . . Construction Impeded . | . . . . . Haulers Reinforced . | . . . . . Active Scanning Responses . | . . . . . Cargo Convoy Interrupts . | . . . . . Stealth | -11 -10 -10 -10 -8 --------- Run | Yrd Mat Min Sub Scr Distress Signals 1 | . 1 . . . Communications Jammed . | . . . . . Distress Signals . | . . . . . Times Spotted 77 | . 20 23 2 32 Peak Tracking Total 10 | . 3 7 2 10 Tactical Retreats 1 | . . 1 . . Traps | -11 -10 -10 -10 -8 ------- Run | Yrd Mat Min Sub Scr Traps Triggered 1 | . 1 . . . Indirectly . | . . . . . Trap Hack Attempts . | . . . . . Triggered . | . . . . . Disarmed 1 | . 1 . . . Reprogrammed . | . . . . . Reused . | . . . . . Traps Extracted . | . . . . . Installed . | . . . . . Triggered . | . . . . . Machines | -11 -10 -10 -10 -8 ---------- Run | Yrd Mat Min Sub Scr Machines Disabled 2 | . . 1 . 1 Max in Single Turn 1 | . . 1 . 1 Machines Repaired . | . . . . . Machines Dismantled . | . . . . . Machines Sabotaged . | . . . . . Overloaded Fab Kills . | . . . . . Hacking | -11 -10 -10 -10 -8 --------- Run | Yrd Mat Min Sub Scr Machines Accessed 18 | . 8 . . 10 Terminals 6 | . 6 . . . Fabricators . | . . . . . Repair Stations 1 | . 1 . . . Recycling Units 1 | . 1 . . . Scanalyzers . | . . . . . Garrison Access . | . . . . . Total Hacks 88 | . 31 . . 57 Successful 75 | . 18 . . 57 Failed 13 | . 13 . . . Catastrophic 2 | . 2 . . . Database Lockouts . | . . . . . Manual 22 | . 22 . . . Terminals 25 | . 25 . . . Fabricators . | . . . . . Repair Stations 4 | . 4 . . . Recycling Units 2 | . 2 . . . Scanalyzers . | . . . . . Garrison Access . | . . . . . Terminal Hacks 66 | . 9 . . 57 Record 54 | . 3 . . 51 Part Schematic 1 | . 1 . . . Robot Analysis 8 | . 3 . . 5 Locate Traps 1 | . 1 . . . Disarm Traps 1 | . 1 . . . Proto ID Catalog 1 | . . . . 1 Fabricator Hacks . | . . . . . Repair Station Hacks 3 | . 3 . . . Scan Component 2 | . 2 . . . Repair 1 | . 1 . . . Recycling Unit Hacks 1 | . 1 . . . Report Inventory 1 | . 1 . . . Scanalyzer . | . . . . . Garrison Access Hacks . | . . . . . Unauthorized Hacks 5 | . 5 . . . Terminals 5 | . 5 . . . Assimilate 1 | . 1 . . . Botnet 4 | . 4 . . . Fabricators . | . . . . . Repair Stations . | . . . . . Recycling Units . | . . . . . Scanalyzers . | . . . . . Garrison Access . | . . . . . Data Cores Recovered . | . . . . . Used . | . . . . . Hacking Detections 8 | . 8 . . . Full Trace Events . | . . . . . Feedback Events . | . . . . . Feedback Blocked . | . . . . . Robot Schematics Acquired . | . . . . . Robots Built . | . . . . . Authchips . | . . . . . Time . | . . . . . Total Robot Build Rating . | . . . . . Part Schematics Acquired 1 | . 1 . . . Parts Built . | . . . . . Authchips . | . . . . . Time . | . . . . . Total Part Build Rating . | . . . . . Parts Repaired 1 | . 1 . . . Time 26 | . 26 . . . Parts Recycled . | . . . . . Recycled Matter . | . . . . . Retrieved Matter . | . . . . . Retrieved Components . | . . . . . Parts Scanalyzed . | . . . . . Part Schematics Acquired . | . . . . . Parts Damaged . | . . . . . Bothacking | -11 -10 -10 -10 -8 ------------ Run | Yrd Mat Min Sub Scr Used RIF Installer . | . . . . . Robots Hacked . | . . . . . Non-combat . | . . . . . Combat . | . . . . . Robot Hacks Applied . | . . . . . Relay Couplers Released . | . . . . . Fabnet Peak Effective % . | . . . . . Robots Rewired . | . . . . . Allies Hacked . | . . . . . Hacks Repelled . | . . . . . Allies | -11 -10 -10 -10 -8 -------- Run | Yrd Mat Min Sub Scr Total Allies 3 | . . 3 . . Largest Group 3 | . . 3 . . Highest-Rated Group 40 | . . 40 . . Highest-Rated Ally 16 | . . 16 . . Total Orders 1 | . . 1 . . GUARD 1 | . . 1 . . Ally Attacks 3 | . . 3 . . Total Damage 35 | . . 35 . . Kills . | . . . . . Allies Corrupted . | . . . . . Allies Melted 7 | . . . . 7 Intel | -11 -10 -10 -10 -8 ------- Run | Yrd Mat Min Sub Scr Active Infowar (turns) 7418 | 14 1839 1455 354 3756 Terrain 3759 | . . 162 2 3595 Seismic 3659 | 14 1839 1293 352 161 Robot Analysis Total 8 | . 3 . . 5 Derelict Logs Recovered 1 | . . 1 . . Drone Launches . | . . . . . Drone Recoveries . | . . . . . Exploration | -11 -10 -10 -10 -8 ------------- Run | Yrd Mat Min Sub Scr Turns Passed 7805 | 59 1839 1460 354 4093 Spaces Moved 4006 | 30 1018 688 178 2092 Core . | . . . . . Treads . | . . . . . Legs 4006 | 30 1018 688 178 2092 Wheels . | . . . . . Hover . | . . . . . Flight . | . . . . . Fastest Speed 90 | 120 120 190 190 90 Average Speed 172 | 120 124 190 190 189 Slowest Speed 190 | 120 190 190 190 190 Overloaded Moves . | . . . . . Propulsion Burnouts . | . . . . . Robots Hopped . | . . . . . Potential Cave-ins . | . . . . . Cave-ins Triggered . | . . . . . Exploration Rate (%) 61 | 3 99 97 15 94 Regions Visited 4 Branch Regions 3 Pre-discovered Areas 1 | . . . . 1 Known Exits Taken . | . . . . . Unknown Exits Taken 4 | 1 1 1 1 . Scrap Searched 6 | . . 2 . 4 Spaces Dug 4 | . 2 . . 2 Terrain Destroyed 37 | . 18 17 . 2 Melee 2 | . 2 . . . Projectile 2 | . . . . 2 AOE 33 | . 16 17 . . Terrain Rammed . | . . . . . Walls Destroyed . | . . . . . Machines Disabled . | . . . . . Actions | -11 -10 -10 -10 -8 --------- Run | Yrd Mat Min Sub Scr Total 4693 | 38 1463 787 184 2221 Wait 405 | . 317 48 1 39 Move 4002 | 29 1017 687 177 2092 Hop . | . . . . . Pick Up 37 | . 16 4 . 17 Fast Attach 8 | 1 3 1 . 3 Attach 11 | . 2 5 . 4 Detach 5 | . 1 1 . 3 Swap 40 | . 16 10 1 13 Drop 42 | . 17 2 . 23 Fire 126 | 8 68 29 5 16 Melee 6 | . 6 . . . Ram . | . . . . . Kick 8 | . . . . 8 Crush . | . . . . . Escape Stasis . | . . . . . Rewire 3 | . . . . 3 Trap . | . . . . . Miscellaneous . | . . . . . Route ------- -11/Scrapyard -10/Materials (discovered 4 exits: [*Mat x3] / [*Min]) -10/Mines (discovered 3 exits: [*Mat x2] / [*Sub]) -10/Subcaves -8/Scraptown (discovered 2 exits: [*Fac x2]) History --------- Turn | Location | Event 1 | -11/Scrapyard | Discovered new exit (range 2) 60 | -11/Scrapyard | Entered Materials 186 | -10/Materials | Discovered new exit (range 14) 301 | -10/Materials | Build established: Mutant 987 | -10/Materials | Discovered new exit (range 9) 1193 | -10/Materials | Discovered new exit (range 4) 1234 | -10/Materials | Repaired Aluminum Leg 1874 | -10/Materials | Discovered new exit (range 8) 1899 | -10/Materials | Entered Mines 2084 | -10/Mines | Learned 2 Materials zone layouts 2179 | -10/Mines | Assisted by bots powering up and referring to "LRC-V3" 2216 | -10/Mines | Assembled infested the area 2221 | -10/Mines | Assisted by a Guerilla fighting off Assembled 2267 | -10/Mines | Lost 4 allies 2384 | -10/Mines | Discovered new exit (range 7) 2622 | -10/Mines | Lost 4 parts (1p1n2w) 2793 | -10/Mines | Discovered new exit (range 15) 2859 | -10/Mines | Core integrity fell below 50% 2895 | -10/Mines | Build established: Scavenger-Mutant 2981 | -10/Mines | Discovered new exit (range 6) 3359 | -10/Mines | Entered Subcaves 3360 | -10/Subcaves | Approached by a straggling Scientist 3561 | -10/Subcaves | Scientist uncovered a shortcut to Scraptown 3713 | -10/Subcaves | Entered Scraptown 3733 | -8/Scraptown | Heard Great Nut preacher, LISTEN AND RECITE! 4059 | -8/Scraptown | Visited TADAMA 4119 | -8/Scraptown | Visited IN-MT5's Study 4176 | -8/Scraptown | Visited The Evicted 4619 | -8/Scraptown | System corruption cleaned by C-Scrubber 5065 | -8/Scraptown | Visited SPCMW 5150 | -8/Scraptown | Visited Cave Peace 5279 | -8/Scraptown | Discovered new exit (range 5) 5496 | -8/Scraptown | Visited Cyclists 5614 | -8/Scraptown | Visited UFD Registry 5614 | -8/Scraptown | Registered with UFD as "Steamslasher" 5652 | -8/Scraptown | Entered Cyclist Reading Room 5773 | -8/Scraptown | Visited Science Guys 5863 | -8/Scraptown | Visited Chapter 10 5973 | -8/Scraptown | Found Unknown Device 6054 | -8/Scraptown | Discovered new exit (range 5) 6117 | -8/Scraptown | Visited Scrapoid Research Area 6181 | -8/Scraptown | Visited Science Testing Area 6229 | -8/Scraptown | Visited Analyses Database 6273 | -8/Scraptown | Visited LU-1G1's Boring Crew 6657 | -8/Scraptown | Visited DA-N13 Charitable Foundation 6677 | -8/Scraptown | Found DCF Scrap (29 items) 6804 | -8/Scraptown | Visited Scrapoid Pod Storage 6822 | -8/Scraptown | Found Scrapoid Pod 6855 | -8/Scraptown | Visited Curators Association 6993 | -8/Scraptown | Build established: Mutant 7076 | -8/Scraptown | Met Optimus 7076 | -8/Scraptown | Accepted into 0bPrime 7196 | -8/Scraptown | Civil war broke out across Scraptown 7298 | -8/Scraptown | Lost 8 allies 7396 | -8/Scraptown | Lost 5 allies 7493 | -8/Scraptown | Lost 3 allies 7588 | -8/Scraptown | Optimus destroyed in the chaos of civil war 7644 | -8/Scraptown | Lost 10 allies 7721 | -8/Scraptown | Lost 3 allies 7781 | -8/Scraptown | Identified Scrap Suit 7793 | -8/Scraptown | Core integrity fell below 20% 7806 | -8/Scraptown | Destroyed by KU-7GM(j) with Overtuned Pulse Rifle Last Messages --------------- 07781_ Acquired Unknown Device. 07781_ Identified Scrap Suit. 07782_ Ovr. Pulse Rifle recovered from malfunction. 07782_ Kicked QI-0NO(j). 07785_ Kicked QI-0NO(j) out of the way. 07786_ Kicked BV-Y7U(j). 07790_ QI-0NO(j) heat damages Scrap Suit. 07790_ Kicked BV-Y7U(j). 07793_ BV-Y7U(j) heat short circuits Scrap Suit. 07794_ Mak. Microdissipator Network melted. 07794_ BV-Y7U(j) destroyed. 07794_ Switching to secondary target: QI-0NO(j). 07794_ QI-0NO(j) destroyed. 07796_ Extracted 20 energy. 07800_ Acquired 14 matter. 07801_ Ovr. Pulse Rifle destroyed. 07805_ Scrap Suit cannibalized Ovr. Titanium Leg to repair VSS Leg. 07806_ Scrap Suit cannibalized Lgt. Deuterium Engine to repair Lgt. Deuterium Engine. 07806_ KU-7GM(j) cannibalizes Aluminum Leg to repair Ovr. Titanium Leg. Map ----- +----------------------------------------------------+ | ##"""""" ""#"" """"""#????????#???????????????? | | #????????????????????????? | | #????????????????#?#??#??? | | #??????##?????#?????????## | | ##########"" """"#####???????????????????#???"" | | ##?????#?##" "##????#??#????????????????##"" | | #########?#" ""#??????????????????????????#"" | | """"""""#?#" """#????????????#?????????????# | | " ""###" """#??????????????????????#???### | | "###"""""""#???#????????????????????????? | | " ""###########?????#?##?????##############? | | """"""""##?#???#!###???????????#?#"""""""""""### | | ##"""####?#???###=######??#??????#""""" X """#"" | | ######???##??##""=!#"""###??????##""" """"# | | ###########???#"""!#" XX#?#??#??#" "/""#"" | | #?# #?#?#""=[#" #???????#""" """"#"" | | ### "" "" ##?##"%!"# = #?##???##"""" ""#"" | | ### ""X"" #?#?#%|""##[#""#???????#"" #"" | | ### """"" ###?#!#####%#####?#????#"" "" " #"" | | #?# """ ##??#"*=!!=!! #??#????#"" "" "&#"" | | #?# " ##??#X! =%*! #???????# "#" | | #?# #?### *! * #???????#" # | | #?# ##?## x %=##?#????###### ######## | | *## ############;;;#;; ;;##??#???#####" ######## | | %[[%!= * % !%! ###??#??#""" " """ | | !!!![ % = %! @= ##???##?#" % | | ! ![= =!!* = #???#???#" * = | | =!= !%%j[*!=[ % #???#####"=%! [ = | | *%& !![=[%[*%= #??## " !! =% !!! | | #################% != #???###"# ** == =[%* | | % #?????##??????#?#!j!%[ ! #?#?#""" =%!%! ""!" | | ! ##?????????#???##=%%=! %* ##??#""" % =!!%""""""" | | ! #???###??##?##?#;=!= #?### ""##### | | * #??##??##?#?#??## ! #?# " "" ""# | | #??????????#??##; = [== #####"""" ""# | | #?#########???###% %!!%! ###?#"""" ""# " | | !*#?#"""""""#????#;!%! [!! "#"#"""" ""# "" | | %[#?" " "#????#!! % !%= """"#"""" ""# " | | [ ###" "#?####!%![! ! ""#######" "" | | ! # " ""##?#?#"==g* ####?##?#" "" | | # " """#??#?## #########" ""# " | | # " ""##????# &% ""# "" | | # " "#???#?# ""# " | | #""" "#?#???# * % ""# | | # = ##???##!!![ ""# | | ####!#####"######%=%=! ""##### | | !%!%= ! %*%!=!=%! %! """"""" | | [ =[[* % %*=%[ =% /% """"""" | | =%!%!![=* [=!! = !%= = | | %==!*%!!%= = !%[! ! = ![= | +----------------------------------------------------+ Best States ------------- Heat Dissipation 35 Energy Generation 14 Energy Capacity 250 Matter Stores 300 Matter Capacity 300 Sight Range 16 Terrain Scan Range 16 Terrain Scan Density 10 Armor Coverage 225 Evasion (%) 55 Item Schematics ----------------- Lrg. Storage Unit | -10/Materials | Hacked Robot Schematics ------------------ None Fabricated ------------ Nothing Repaired ---------- Aluminum Leg | 62% | -10/Materials Alien Tech Used ----------------- None Achievements -------------- None Challenges ------------ None Game ------ Seed ArmageddonAssemblyKatana Manual? 0 Play Time 01:28:23 Cumulative 66.4 hours Start 2025.06.01 @ 13:57:22 End 2025.06.01 @ 15:33:25 Sessions 1 Manual Loads 0 Difficulty Rogue Special Mode None Game No. 73 Rogue 73 Adventurer 0 Explorer 0 Win Type - Total 0 Types 0/0/0/0/0/0/0/0/0/0 Lore% 37 Gallery% 31 Achievement% 28 Wizard Run 0 Options --------- Layout 0 ASCII 0 Keyboard 1 Movement Numpad Keybinds 0 Fullscreen 2 Font 18/SmallcapsGlow Map View 76x50 Zoom Use 0% Tactical HUD 1 Map Filters NONE Filters NONE Steam 1 RUN: 096980aa-4696-4e02-b286-d5050ac24482